Cogmind - Beta 17 @@@ ROGUE MODE // 2026.07.29 @ 00:48:53 Player: gortmind Result: Destroyed by G-47 Trooper with Particle Gun Performance ------------- Evolutions (0) 0 Regions Visited (1) 200 Robots Destroyed (15) 75 Value Destroyed (421) 421 Prototype IDs (0) 0 Alien Tech Used (0) 0 Bonus (0) 0 TOTAL SCORE: 696 Bonus ------- None Cogmind --------- Core Integrity 0/250 Matter 300/300 Energy 100/100 System Corruption 0% Temperature Cool (15) Movement Core (100) Ox1 Location -10/Materials Parts ------- > --- POWER (1) -------- (None) > --- PROPULSION (2) --- (None) > --- UTILITY (2) ------ Small Storage Unit > --- WEAPON (2) ------- Datajack > --- INVENTORY (8) ---- Wheel Compact Wheel Medium Matter Pod (100) Structural Scanner Peak State ------------ > --- POWER ------------ Light Nuclear Core > --- PROPULSION ------- Light Treads Light Treads > --- UTILITY ---------- Small Storage Unit Structural Scanner > --- WEAPON ----------- Assault Rifle Light Assault Rifle > --- INVENTORY -------- Ion Engine Aluminum Leg Aluminum Leg Wheel Compact Wheel Light Armor Plating EM Pulse Gun Datajack [Rating: 9] Favorites ----------- Power Ion Engine Engine Ion Engine Power Core Light Nuclear Core Propulsion Aluminum Leg Treads Light Treads Leg Aluminum Leg Utility Small Storage Unit Device Improved Terrain Scanner Storage Small Storage Unit Protection Light Armor Plating Weapon Light Assault Rifle Energy Gun Small Laser Ballistic Gun Light Assault Rifle Special Weapon Mining Laser Special Melee Weapon Datajack Build | -11 -10 ------- Run | Yrd Mat Slots Evolved . | . . Power . | . . Propulsion . | . . Utility . | . . Weapon . | . . Parts Attached 20 | 6 14 Power 3 | 1 2 Engine 2 | 1 1 Core 1 | . 1 Reactor . | . . Propulsion 5 | 2 3 Treads 2 | 2 . Leg 3 | . 3 Wheel . | . . Hover . | . . Flight . | . . Utility 5 | 1 4 Device 2 | . 2 Storage 2 | 1 1 Processor . | . . Hackware . | . . Protection 1 | . 1 Artifact . | . . Weapon 7 | 2 5 Energy Gun 3 | . 3 Energy Cannon . | . . Ballistic Gun 2 | 2 . Ballistic Cannon . | . . Launcher . | . . Special Weapon 1 | . 1 Impact Weapon . | . . Slashing Weapon . | . . Piercing Weapon . | . . Special Melee Weapon 1 | . 1 Unidentified Prototypes . | . . Parts Lost 14 | . 14 Power 2 | . 2 Propulsion 4 | . 4 Utility 2 | . 2 Weapon 6 | . 6 Highest Loss Streak 4 | . 4 To Critical Strikes . | . . Average Backups 5 | 2 5 Power . | . . Propulsion 2 | 1 2 Utility 1 | . 1 Weapon . | . . Tool/Special . | . . Unused Backups 2 | . 2 Power . | . . Propulsion 2 | . 2 Utility . | . . Weapon . | . . Tool/Special . | . . Average Slot Usage (%) 72 | . 72 Engine 4 | . 4 Treads 8 | . 8 Leg 13 | . 13 Device 4 | . 4 Storage 21 | . 21 Protection 1 | . 1 Energy Gun 5 | . 5 Ballistic Gun 8 | . 8 Special Weapon 2 | . 2 Peak Build Rating 9 | 6 9 Average Rating 5 | 4 5 On Entrance 3 | . 6 Avg Prop Armor Cover (%) 10 | . 10 Naked Turns . | . . Heaviest Build 17 | 13 17 Greatest Support 40 | 40 40 Greatest Overweight (x) 4 | 4 2 Average Overweight (x) . | . . Largest Inventory Capacity 8 | 8 8 Average Capacity 7 | 7 8 Most Carried 8 | 6 8 Average Carried 5 | 2 5 Final Capacity 8 | 8 8 Final Carried 6 | 6 4 Class Distribution -------------------- 79% | Mutant 20% | Scavenger-Mutant Dominant Class ---------------- Mutant | -10/Materials Resources | -11 -10 ----------- Run | Yrd Mat Matter Collected 635 | 89 546 Remotely . | . . Salvage Created 531 | . 531 Parts 32 | . 32 Haulers Intercepted . | . . Recyclers Shooed . | . . Parts Field Recycled . | . . Retrieved Matter . | . . Parts Self-Destructed . | . . Prevented . | . . Parts Restored . | . . Kills | -11 -10 ------- Run | Yrd Mat Combat Hostiles Destroyed 12 | . 12 Guns 11 | . 11 Classes Destroyed 6 | . 6 Worker 1 | . 1 Operator 1 | . 1 Watcher 1 | . 1 Swarmer 3 | . 3 Grunt 8 | . 8 Subdweller 1 | . 1 Best Kill Streak 4 | . 4 Combat Bots Only 3 | . 3 Max Kills in Single Turn 2 | . 2 Gunslinging 1 | . 1 Exploded . | . . Melee . | . . Uniques/NPCs Destroyed . | . . Combat | -11 -10 -------- Run | Yrd Mat Hostile Shots Fired 145 | . 145 Missed 41 | . 41 Hits 104 | . 104 Projectile 104 | . 104 AOE 3 | . 3 Critical Strikes 2 | . 2 Damage Taken 1540 | . 1540 Core 260 | . 260 Absorbed by Shields . | . . Core Remaining (%) 100 | 100 . Volleys Fired 70 | . 70 Largest 2 | . 2 Hottest 140 | . 140 Shots Fired 119 | . 119 Gun 109 | . 109 Cannon . | . . Launcher . | . . Special 10 | . 10 Kinetic 79 | . 79 Thermal 32 | . 32 Explosive . | . . Electromagnetic 8 | . 8 Robot Hit Streak 13 | . 13 Robot Miss Streak 3 | . 3 Penetration Max . | . . Secondary Targets 2 | . 2 Max Gunslinging Chain 1 | . 1 Shots Hit Robots 68 | . 68 Core Hits 28 | . 28 Critical Kills . | . . Critical Parts Destroyed 1 | . 1 Critical Strikes 1 | . 1 Destroy 1 | . 1 Melee Attacks 4 | . 4 Impact . | . . Slashing . | . . Piercing . | . . Sneak Attacks . | . . Combat Hostiles . | . . Follow-up Attacks . | . . Damage Inflicted 778 | . 778 Guns 731 | . 731 Cannons . | . . Explosions 20 | . 20 Melee . | . . Ramming 3 | . 3 Kinetic 539 | . 539 Thermal 174 | . 174 Explosive . | . . Electromagnetic 62 | . 62 Impact . | . . Slashing . | . . Piercing . | . . Highest Corruption . | . . Average Corruption . | . . Corruption Purged . | . . Corruption Blocked . | . . Overload Shots . | . . Overflow Damage . | . . Projectiles . | . . Explosions . | . . Melee . | . . Knockbacks . | . . Impact . | . . Kinetic . | . . Secondary . | . . Self-Inflicted Damage 22 | . 22 Shots 1 | . 1 Rammed . | . . Targets Rammed . | . . Kicked . | . . Crushed . | . . Highest Temperature 133 | . 133 Average Temperature 25 | . 25 Received Heat Transfer 678 | . 678 Siege Activations . | . . Martial Activations . | . . Shielding Activations . | . . Robots Disrupted . | . . Combat Hostiles . | . . Robots Corrupted . | . . Combat Hostiles . | . . Parts Fried . | . . Impact Corruptions . | . . Robots Melted 1 | . 1 Combat Hostiles 1 | . 1 Parts Melted . | . . Heat Transferred 400 | . 400 Parts Sabotaged . | . . Parts Stolen . | . . Parts Stripped . | . . Power Chain Reactions 1 | . 1 Alert | -11 -10 ------- Run | Yrd Mat Maximum Alert Level . | . . Low Security (%) 100 | 100 100 Level 1 . | . . Level 2 . | . . Level 3 . | . . Level 4 . | . . Level 5 . | . . High Security . | . . Max Security . | . . Peak Influence 108 | . 108 Initial . | . . Average 18 | . 20 Influence Increases 329 | . 329 Destroy 0b10 Robot/C 220 | . 220 Destroy 0b10 Robot/NC 15 | . 15 Destroy Leader 42 | . 42 Successful Hack 9 | . 9 Disable Machine 30 | . 30 Destroy Structure 13 | . 13 Influence Decreases 329 | . 329 Time Decay 244 | . 244 Lost Part 85 | . 85 Squads Dispatched 3 | . 3 Investigation 2 | . 2 Extermination . | . . Reinforcement 1 | . 1 Assault . | . . Garrison . | . . Intercept . | . . Searches Triggered . | . . Construction Impeded . | . . Haulers Reinforced . | . . Active Scanning Responses . | . . Cargo Convoy Interrupts . | . . Stealth | -11 -10 --------- Run | Yrd Mat Distress Signals 3 | . 3 Communications Jammed . | . . Distress Signals . | . . Times Spotted 25 | . 25 Peak Tracking Total 4 | . 4 Tactical Retreats 1 | . 1 Traps | -11 -10 ------- Run | Yrd Mat Traps Triggered . | . . Indirectly . | . . Trap Hack Attempts . | . . Triggered . | . . Disarmed . | . . Reprogrammed . | . . Reused . | . . Traps Extracted . | . . Installed . | . . Triggered . | . . Machines | -11 -10 ---------- Run | Yrd Mat Machines Disabled 2 | . 2 Max in Single Turn 1 | . 1 Machines Repaired . | . . Machines Dismantled . | . . Machines Sabotaged . | . . Overloaded Fab Kills . | . . Hacking | -11 -10 --------- Run | Yrd Mat Machines Accessed 2 | . 2 Terminals 2 | . 2 Fabricators . | . . Repair Stations . | . . Recycling Units . | . . Scanalyzers . | . . Garrison Access . | . . Total Hacks 3 | . 3 Successful 2 | . 2 Failed 1 | . 1 Catastrophic . | . . Database Lockouts . | . . Manual . | . . Terminals 3 | . 3 Fabricators . | . . Repair Stations . | . . Recycling Units . | . . Scanalyzers . | . . Garrison Access . | . . Terminal Hacks 2 | . 2 Dispatch Records 1 | . 1 Hauler Manifests 1 | . 1 Fabricator Hacks . | . . Repair Station Hacks . | . . Recycling Unit Hacks . | . . Scanalyzer . | . . Garrison Access Hacks . | . . Unauthorized Hacks . | . . Terminals . | . . Fabricators . | . . Repair Stations . | . . Recycling Units . | . . Scanalyzers . | . . Garrison Access . | . . Data Cores Recovered . | . . Used . | . . Hacking Detections . | . . Full Trace Events . | . . Feedback Events . | . . Feedback Blocked . | . . Robot Schematics Acquired . | . . Robots Built . | . . Authchips . | . . Time . | . . Total Robot Build Rating . | . . Part Schematics Acquired . | . . Parts Built . | . . Authchips . | . . Time . | . . Total Part Build Rating . | . . Part Studies Acquired . | . . Parts Repaired . | . . Time . | . . Parts Recycled . | . . Recycled Matter . | . . Retrieved Matter . | . . Retrieved Components . | . . Parts Scanalyzed . | . . Part Schematics Acquired . | . . Parts Damaged . | . . Bothacking | -11 -10 ------------ Run | Yrd Mat Used RIF Installer . | . . Robots Hacked 1 | . 1 Non-combat . | . . Combat 1 | . 1 Robot Hacks Applied 1 | . 1 parse_system 1 | . 1 Relay Couplers Released . | . . Fabnet Peak Effective % . | . . Robots Rewired . | . . Allies Hacked . | . . Hacks Repelled . | . . Allies | -11 -10 -------- Run | Yrd Mat Total Allies . | . . Largest Group . | . . Highest-Rated Group . | . . Highest-Rated Ally . | . . Total Orders . | . . Ally Attacks . | . . Total Damage . | . . Kills . | . . Allies Corrupted . | . . Allies Melted . | . . Intel | -11 -10 ------- Run | Yrd Mat Active Infowar (turns) 519 | . 519 Terrain 321 | . 321 Structural 198 | . 198 Robot Analysis Total . | . . Derelict Logs Recovered . | . . Drone Launches . | . . Drone Recoveries . | . . Exploration | -11 -10 ------------- Run | Yrd Mat Turns Passed 1576 | 115 1461 Spaces Moved 513 | 61 452 Core 43 | 19 24 Treads 229 | 42 187 Legs 241 | . 241 Wheels . | . . Hover . | . . Flight . | . . Fastest Speed 50 | 50 120 Average Speed 140 | 160 138 Slowest Speed 250 | 250 160 Overloaded Moves . | . . Propulsion Burnouts . | . . Robots Hopped . | . . Potential Cave-ins . | . . Cave-ins Triggered . | . . Exploration Rate (%) 36 | 4 68 Regions Visited 1 Branch Regions . Pre-discovered Areas . | . . Known Exits Taken . | . . Unknown Exits Taken 1 | 1 . Scrap Searched . | . . Spaces Dug 7 | . 7 Terrain Destroyed 14 | . 14 Melee . | . . Projectile 9 | . 9 AOE 5 | . 5 Terrain Rammed 1 | . 1 Walls Destroyed . | . . Machines Disabled . | . . Actions | -11 -10 --------- Run | Yrd Mat Total 1232 | 78 1154 Wait 590 | . 590 Move 512 | 60 452 Hop . | . . Pick Up 25 | 12 13 Fast Attach . | . . Attach 17 | 6 11 Detach . | . . Swap 8 | . 8 Drop 5 | . 5 Fire 70 | . 70 Melee 4 | . 4 Ram 1 | . 1 Kick . | . . Crush . | . . Escape Stasis . | . . Rewire . | . . Trap . | . . Miscellaneous . | . . Route ------- -11/Scrapyard -10/Materials (discovered 4 exits: [*Mat x2] / [*Min x2]) History --------- Turn | Location | Event 20 | -11/Scrapyard | Discovered new exit (range 16) 116 | -11/Scrapyard | Entered Materials 319 | -10/Materials | Build established: Mutant 580 | -10/Materials | Discovered new exit (range 12) 590 | -10/Materials | Lost 4 parts (1n1u2w) 616 | -10/Materials | Derelicts attacked the area 742 | -10/Materials | Lost 3 parts (1p1n1w) 1256 | -10/Materials | Core integrity fell below 50% 1304 | -10/Materials | Discovered new exit (range 10) 1323 | -10/Materials | Discovered new exit (range 15) 1526 | -10/Materials | Discovered new exit (range 13) 1534 | -10/Materials | Build established: Scavenger-Mutant 1534 | -10/Materials | Core integrity fell below 20% 1570 | -10/Materials | Lost 3 parts (2n1w) 1577 | -10/Materials | Destroyed by G-47 Trooper with Particle Gun Last Messages --------------- 01249_ Acquired Imp. Terrain Scanner. 01255_ Kicked Wall. 01255_ Destabilizing: Core damaged (-10). 01255_ Destabilizing: Core damaged (-7). 01276_ U-05 Engineer builds a Wall. 01304_ EXIT=FOUND 01327_ U-05 Engineer builds a Wall. 01334_ Acquired 18 matter. 01368_ U-05 Engineer builds a Wall. 01511_ Mining Laser destroyed. 01517_ U-05 Engineer builds a Wall. 01522_ Jacked G-34 Mercenary... >>parse_system Reading system data... 01522_ Aluminum Leg destroyed. 01526_ EXIT=FOUND 01539_ Aluminum Leg destroyed. 01549_ Connecting with Recycling Unit... 01571_ Imp. Terrain Scanner destroyed. 01573_ Sml. Laser destroyed. Map ----- +----------------------------------------------------+ | | | | | | | | | | | | | | | | | | | | | | | ?????????????????????????#????#??????????????#??? | | ?????????????????#??????????????????#???????????? | | ?????????????????#????#???????????#?????????????? | | ??????????????????????????????????#######? ?????? | | ????????????????????############### #???????? | | ????????????????????# #??""? ?? | | ????????????????????# < # ???? "? | | ????????????????????# #???????? | | ?????????????????#######+########## #?"?"??? | | ?????????????????# u #??## ##???????? | | ?????????????????# #?### #???"????? | | ????????????#????# """ """ """ #?# # ##????? ?? | | ?????????????????# "Y """ """ #?### ##?##+#### | | ??????????????#??# """ """ """ #??## #??# % | | ?????????????????# g @ g #???# #### #?? | | ?????????????????#################?# #?? | | ???????????????????????#???????#???# #?? | | ???????????????????????????????????# """ ### | | ???????????????????????????????#??## """ | | ????????????????????????#???#??????# """ / | | ???????????????????????????????????# | | ???????????????#??#??#???#???#??#?## ### | | ?????????????????????????#???###???# #?# | | ??????????????#???????### ##"###########+###### | | ??????????????? + # | | ??????????????????????### ########### !! """ # | | ???????????????????????### ???????????# !! "T" # | | ?????????????????????????# ############ # | | ????????????????????????## ########### | | ????????????????????????# | | ????????????????????????# | | ????????????????????????+ """ | | ????????????????????????# """ | | ???????????????????????## """ ######### | | ???????????????????????# # # !!% | | ???????????????????????# !! | | ???????????????????????# < !! | | ???????????????????????# | | ??????????????????????## ##### # | +----------------------------------------------------+ Best States ------------- Heat Dissipation 25 Energy Generation 14 Energy Capacity 250 Matter Stores 377 Matter Capacity 400 Sight Range 16 Terrain Scan Range 16 Terrain Scan Density 10 Armor Coverage 150 Evasion (%) 55 Recoil Reduction 2 Item Schematics ----------------- None Robot Schematics ------------------ None Fabricated ------------ Nothing Repaired ---------- Nothing Studied --------- None Alien Tech Used ----------------- None Achievements -------------- None Challenges ------------ None Game ------ Seed KineticTerrainDrivehammer Manual? 0 Play Time 00:12:36 Cumulative 12.4 hours Start 2026.07.28 @ 21:48:34 End 2026.07.29 @ 00:48:53 Sessions 2 Manual Loads 0 Difficulty Rogue Special Mode None Game No. 17 Rogue 17 Adventurer 0 Explorer 0 Win Type - Total 0 Types 0/0/0/0/0/0/0/0/0/0 Lore% 12 Gallery% 13 Achievement% 15 Wizard Run 0 Options --------- Layout 1 ASCII 0 Keyboard 0 Movement Mouse Keybinds 0 Fullscreen 1 Font 48/Smallcaps Map View 50x35 Zoom Use 0% Tactical HUD 1 Map Filters NONE Filters NONE Steam 1 RUN: 75a12ce8-8429-447e-92ca-d452aa5b2a23